bitfinex-derivatives/quotes_BNBF0:USTF0_20251027
["timestamp","ask_amount","ask_price","bid_price","bid_amount"]
[1761564382470,1.29025549,1156.1,1154.2,0.53839644]
[1761564382667,1.29025549,1156.1,1154.3,0.53839644]
[1761564382972,1.29025549,1156.1,1154.4,0.53839644]
[1761564383174,1.29025549,1156.1,1154.5,0.53839644]
[1761564383375,1.29025549,1156.1,1154.0,0.64128399]
[1761564383571,1.29025549,1156.1,1154.1,0.53826857]
[1761564383870,1.29025549,1156.2,1154.2,0.53826857]
[1761564384070,1.29025549,1156.2,1154.3,0.53826857]
[1761564384373,1.29025549,1156.2,1154.4,0.53826857]
[1761564384574,1.29025549,1156.2,1154.5,0.53826857]
[1761564384774,1.29025549,1156.2,1154.1,0.64128399]
[1761564384971,1.29025549,1156.2,1154.2,0.53819496]
[1761564385170,1.29025549,1156.3,1154.3,0.53819496]
[1761564385373,1.29025549,1156.2,1154.4,0.53819496]
[1761564385573,1.29025549,1156.2,1154.5,0.53819496]
[1761564385772,1.29025549,1156.2,1154.2,0.64128399]
[1761564385972,1.29025549,1156.2,1154.3,0.53802021]
[1761564386170,1.29025549,1156.1,1154.4,0.53802021]
[1761564386371,1.29025549,1156.2,1154.5,0.53802021]
[1761564386572,1.29025549,1156.2,1154.6,0.53802021]
[1761564386771,1.29025549,1156.3,1154.2,0.64128399]
[1761564386971,1.29025549,1156.3,1154.3,0.53780114]
[1761564387275,1.29025549,1156.2,1154.4,0.53780114]
[1761564387471,1.29025549,1156.2,1154.5,0.53780114]
[1761564387776,1.29025549,1156.2,1154.6,0.53770309]
[1761564387974,1.29025549,1156.3,1154.2,0.64128399]
[1761564388172,1.29025549,1156.3,1154.3,0.53770309]
[1761564388474,1.29025549,1156.3,1154.4,0.53770309]
[1761564388672,1.29025549,1156.3,1154.5,0.53770309]
[1761564388873,1.29025549,1156.3,1154.1,0.64128399]
[1761564389073,1.29025549,1156.3,1153.6,1.298885]
[1761564389074,1.29025549,1156.4,1154.2,0.53765236]
[1761564389376,1.29025549,1156.4,1154.3,0.53765236]
[1761564389575,1.29025549,1156.4,1154.4,0.53765236]
[1761564389875,1.29025549,1156.4,1154.5,0.53765236]
[1761564390172,1.29025549,1156.4,1154.0,0.64128399]
[1761564390376,1.29025549,1156.5,1154.1,0.53757441]
[1761564390569,1.29025549,1156.5,1154.2,0.53757441]
[1761564390774,1.29025549,1156.5,1154.3,0.53757441]
[1761564390974,1.29025549,1156.5,1154.4,0.53757441]
[1761564391173,1.29025549,1156.5,1154.5,0.53757441]
[1761564391476,1.29025549,1156.5,1154.0,0.64128399]
[1761564391674,1.29025549,1156.5,1154.1,1.17871747]
[1761564391872,1.29025549,1156.5,1154.2,0.53743348]
[1761564392077,1.29025549,1156.5,1154.3,0.53743348]
[1761564392277,1.29025549,1156.5,1154.4,0.53743348]
[1761564392577,1.29025549,1156.5,1154.5,0.53743348]
[1761564392878,1.29025549,1156.5,1154.6,0.53743348]
[1761564393077,1.29025549,1156.5,1154.1,0.64128399]
[1761564393279,1.29025549,1156.2,1154.2,1.17857287]
[1761564393478,1.29025549,1156.3,1154.3,1.17857287]
[1761564393676,1.29025549,1156.3,1154.4,0.53728888]
[1761564393877,1.29025549,1156.3,1154.5,0.53728888]
[1761564394080,1.29025549,1156.3,1154.3,0.64128399]
[1761564394081,1.29025549,1156.3,1154.6,0.53728888]
[1761564394376,1.29025549,1156.4,1154.3,0.64128399]
[1761564394579,1.29025549,1156.4,1154.4,0.53700983]
[1761564394780,1.29025549,1156.4,1154.5,0.53700983]
[1761564394976,1.29025549,1156.4,1154.6,0.53700983]
[1761564395179,1.29025549,1156.5,1154.7,0.5370094]
[1761564395379,1.29025549,1156.5,1154.2,0.64128399]
[1761564395579,1.29025549,1156.5,1154.3,0.5369681]
[1761564395783,1.29025549,1156.5,1154.4,0.5369681]
[1761564396083,1.29025549,1156.6,1154.5,0.5369681]
[1761564396278,1.29025549,1156.6,1154.6,0.5369681]
[1761564396480,1.29025549,1156.6,1154.7,0.5369681]
[1761564396680,1.29025549,1156.6,1154.2,0.64128399]
[1761564396879,1.29025549,1156.6,1154.3,0.53696279]
[1761564397085,1.29025549,1156.6,1154.4,0.53696279]
[1761564397281,1.29025549,1156.6,1154.5,0.53696279]
[1761564397482,1.29025549,1156.6,1154.6,0.53696279]
[1761564397687,1.29025549,1156.6,1154.7,0.53696279]
[1761564397883,1.29025549,1156.6,1154.3,0.64128399]
[1761564398186,1.29025549,1156.6,1154.4,0.53702254]
[1761564398383,1.29025549,1156.6,1154.5,0.53702254]
[1761564398587,1.29025549,1156.6,1154.6,0.53702254]
[1761564398788,1.29025549,1156.6,1154.7,0.53702254]
[1761564398984,1.29025549,1156.6,1154.3,0.64128399]
[1761564399193,1.29025549,1156.6,1154.4,0.53709891]
[1761564399390,1.29025549,1156.6,1154.5,0.53709891]
[1761564399586,1.29025549,1156.6,1154.6,0.53709891]
[1761564399886,1.29025549,1156.6,1154.7,0.53709891]
[1761564400086,1.29025549,1157.0,1154.8,0.53709891]
[1761564400290,1.29025549,1157.0,1154.2,0.64128399]
[1761564400585,1.29025549,1157.0,1154.3,0.53767959]
[1761564400787,1.29025549,1157.0,1154.2,0.64128399]
[1761564400788,1.29025549,1157.0,1154.4,0.53767959]
[1761564400985,1.29025549,1157.0,1154.5,0.53767959]
[1761564401184,1.29025549,1157.0,1154.6,0.53767959]
[1761564401489,1.29025549,1157.0,1154.7,0.53767959]
[1761564401785,1.29025549,1157.0,1154.8,0.53767959]
[1761564401990,1.29025549,1156.7,1154.0,0.64128399]
[1761564402190,1.29025549,1156.6,1154.1,0.53816476]
[1761564402486,1.29025549,1156.6,1154.2,0.53816476]
[1761564402690,1.29025549,1156.6,1154.3,0.53816476]
[1761564402890,1.29025549,1156.6,1154.4,0.53816476]
[1761564403090,1.29025549,1156.6,1154.5,0.53816476]
[1761564403286,1.29025549,1156.6,1154.6,0.53816476]
[1761564403485,1.29025549,1156.6,1154.0,0.64128399]
[1761564403686,1.29025549,1156.6,1154.1,0.53844093]
[1761564403887,1.29025549,1156.6,1154.2,0.53844093]
[1761564404189,1.29025549,1156.6,1154.3,0.53844093]
[1761564404384,1.29025549,1156.5,1154.4,0.53844093]
[1761564404588,1.29025549,1156.5,1154.5,0.53844093]
[1761564404789,1.29025549,1156.8,1154.6,0.53844093]
[1761564404990,1.29025549,1157.0,1154.7,0.53844093]
[1761564405190,1.29025549,1156.7,1154.8,0.53844093]
[1761564405389,1.29025549,1156.8,1154.9,0.53844093]
[1761564405586,1.29025549,1156.8,1155.0,0.53844093]
[1761564405889,1.29025549,1156.8,1154.4,0.64128399]
[1761564406086,1.29025549,1156.8,1154.5,0.53858466]
[1761564406289,1.29025549,1156.8,1154.6,0.53858466]
[1761564406487,1.29025549,1156.8,1154.7,0.53858466]
[1761564406686,0.15061903,1157.4,1154.8,0.53858466]
[1761564406687,1.29025549,1156.7,1154.8,0.53858466]
[1761564406890,1.29025549,1156.7,1154.9,0.53858466]
[1761564407091,1.29025549,1156.7,1155.0,0.53858466]
[1761564407389,1.29025549,1156.7,1154.4,0.64128399]
[1761564407590,1.29025549,1156.6,1154.5,0.53864191]
[1761564407889,1.29025549,1156.6,1154.6,0.53864191]
[1761564408087,1.29025549,1156.6,1154.7,0.53864191]
[1761564408285,1.29025549,1156.6,1154.8,0.53864191]
[1761564408488,1.29025549,1156.6,1154.9,0.53864191]
[1761564408690,1.29025549,1156.6,1154.4,0.64128399]
[1761564408887,1.29025549,1156.6,1154.5,0.53867199]
[1761564409087,1.29025549,1156.6,1154.6,0.53867199]
[1761564409286,1.29025549,1156.6,1154.7,0.53867199]
[1761564409485,1.29025549,1156.6,1154.8,0.53867199]
[1761564409690,1.29025549,1156.6,1154.9,0.53867199]
[1761564409887,1.29025549,1156.6,1154.4,0.64128399]
[1761564410192,1.29025549,1156.6,1154.5,0.53868661]
[1761564410390,1.29025549,1156.6,1154.6,0.53868661]
[1761564410592,1.29025549,1156.6,1154.7,0.53868661]
[1761564410892,1.29025549,1156.6,1154.8,0.53868661]
[1761564411092,1.29025549,1156.6,1154.9,0.53868661]
[1761564411290,1.29025549,1156.6,1154.4,0.64128399]
[1761564411291,1.29025549,1156.7,1154.4,0.64128399]
[1761564411493,1.29025549,1156.7,1154.5,0.53859938]
[1761564411789,1.29025549,1156.7,1154.6,0.53859938]
[1761564412093,1.29025549,1156.7,1154.7,0.53859938]
[1761564412292,1.29025549,1156.8,1154.8,0.53859938]
[1761564412593,1.29025549,1156.8,1154.9,0.53859938]
[1761564412792,1.29025549,1156.8,1155.0,0.53859938]
[1761564412989,1.29025549,1156.8,1154.4,0.64128399]
[1761564413291,1.29025549,1156.8,1154.5,0.53850405]
[1761564413493,1.29025549,1156.8,1154.6,0.53850405]
[1761564413693,1.29025549,1156.7,1154.7,0.53850405]
[1761564413891,1.29025549,1156.7,1154.8,0.53850405]
[1761564414094,1.29025549,1156.7,1154.9,0.53850405]
[1761564414289,1.29025549,1156.7,1155.0,0.53850405]
[1761564414493,1.29025549,1156.7,1154.4,0.64128399]
[1761564414794,1.29025549,1156.7,1154.5,0.53841543]
[1761564414994,1.29025549,1156.7,1154.4,0.64128399]
[1761564414995,1.29025549,1156.8,1154.6,0.53841543]
[1761564415294,1.29025549,1156.8,1154.7,0.53841543]
[1761564415493,1.29025549,1156.8,1154.8,0.53841543]
[1761564415791,1.29025549,1156.8,1154.9,0.53841543]
[1761564415993,1.29025549,1156.8,1155.0,0.53841543]
[1761564416193,1.29025549,1156.8,1154.4,0.64128399]
[1761564416391,1.29025549,1156.8,1154.5,0.53837137]
[1761564416595,1.29025549,1156.8,1154.4,0.64128399]
[1761564416596,1.29025549,1156.6,1154.7,0.64128399]
[1761564416895,1.29025549,1156.6,1154.8,0.53837137]
[1761564417095,1.29025549,1156.6,1154.9,0.53837137]
[1761564417293,1.29025549,1156.6,1155.0,0.53837137]
[1761564417493,1.29025549,1156.6,1155.1,0.53837137]
[1761564417691,1.29025549,1156.6,1154.7,0.64128399]
[1761564417892,1.29025549,1156.5,1154.8,0.53813216]
[1761564418193,1.29025549,1156.5,1154.9,0.53813216]
[1761564418396,1.29025549,1156.5,1155.0,0.53813216]
[1761564418596,1.29025549,1156.5,1154.7,0.64128399]
[1761564418793,1.29025549,1156.7,1154.8,0.53821674]
[1761564418995,1.29025549,1156.7,1154.9,0.53821674]
[1761564419197,1.29025549,1156.8,1155.0,0.53821674]
[1761564419395,1.29025549,1156.7,1155.1,0.53821674]
[1761564419596,1.29025549,1156.8,1154.6,0.64128399]
[1761564419797,1.29025549,1156.8,1154.7,0.53818405]
[1761564420097,1.29025549,1156.8,1154.8,0.53818405]
[1761564420296,1.29025549,1156.8,1154.9,0.53818405]
[1761564420493,1.29025549,1156.8,1155.0,0.53818405]
[1761564420693,1.29025549,1157.2,1155.1,0.53818405]
[1761564420898,1.29025549,1157.2,1154.5,0.64128399]
[1761564421194,1.29025549,1157.2,1154.6,0.53817396]
[1761564421495,1.29025549,1157.2,1154.7,0.53817396]
[1761564421694,1.29025549,1157.2,1154.8,0.53817396]
[1761564421996,1.29025549,1157.2,1154.9,0.53817396]
[1761564422194,1.29025549,1157.2,1155.0,0.53817396]
[1761564422398,1.29025549,1157.2,1155.1,0.53817396]
[1761564422600,1.29025549,1157.2,1154.4,0.64128399]
[1761564422799,1.29025549,1157.1,1154.5,0.53795666]
[1761564422997,1.29025549,1157.1,1154.6,0.53795666]
[1761564423197,1.29025549,1157.1,1154.7,0.53795666]
[1761564423398,1.29025549,1157.1,1154.8,0.53795666]
[1761564423600,1.29025549,1157.1,1154.9,0.53795666]
[1761564423801,1.29025549,1157.1,1155.0,0.53795666]
[1761564424002,1.29025549,1157.1,1155.1,0.53795666]
[1761564424197,1.29025549,1157.2,1154.4,0.64128399]
[1761564424401,1.29025549,1157.2,1154.5,1.17917565]
[1761564424601,1.29025549,1157.2,1154.6,0.53789166]
[1761564424898,1.29025549,1157.1,1154.7,0.53789166]
[1761564425099,1.29025549,1157.1,1154.8,0.53789166]
[1761564425298,1.29025549,1157.1,1154.9,0.53789166]
[1761564425497,1.29025549,1157.1,1155.0,0.53789166]
[1761564425698,1.29025549,1157.1,1155.1,0.53789166]
[1761564425900,1.29025549,1157.1,1154.5,0.64128399]
[1761564426097,1.29025549,1157.1,1154.6,0.53781971]
[1761564426297,1.29025549,1157.1,1154.7,0.53781971]
[1761564426597,1.29025549,1157.1,1154.8,0.53781971]
[1761564426800,1.29025549,1157.1,1154.9,0.53781971]
[1761564427001,1.29025549,1157.1,1155.0,0.53781971]
[1761564427301,1.29025549,1157.1,1154.5,0.64128399]
[1761564427502,1.29025549,1157.1,1154.6,0.53783965]
[1761564427698,1.29025549,1157.1,1154.7,0.53783965]
[1761564427901,1.29025549,1157.1,1154.8,0.53783965]
[1761564428199,1.29025549,1157.1,1154.9,0.53783965]
[1761564428399,1.29025549,1157.1,1154.4,0.64128399]
[1761564428702,1.29025549,1156.5,1154.6,0.64128399]
[1761564429001,1.29025549,1156.5,1154.7,0.53793009]
[1761564429301,1.29025549,1156.5,1154.8,0.53793009]
[1761564429499,1.29025549,1156.5,1154.9,0.53793009]
[1761564429698,1.29025549,1156.5,1155.0,0.53793009]
[1761564429898,1.29025549,1156.5,1154.6,0.64128399]
[1761564430105,1.29025549,1156.5,1154.7,0.53796018]
[1761564430397,1.29025549,1156.5,1154.8,0.53796018]
[1761564430603,1.29025549,1156.5,1154.9,0.53796018]
[1761564430901,1.29025549,1156.5,1155.0,0.53796018]
[1761564431099,1.29025549,1156.5,1154.6,0.64128399]
[1761564431302,1.29025549,1156.5,1154.7,0.53791683]
[1761564431502,1.29025549,1156.6,1154.8,0.53791683]
[1761564431699,1.29025549,1156.6,1154.9,0.53791683]
[1761564431903,1.29025549,1156.6,1155.0,0.53791683]
[1761564432099,1.29025549,1156.6,1154.6,0.64128399]
[1761564432400,1.29025549,1156.8,1154.7,0.53817661]
[1761564432702,1.29025549,1156.9,1154.8,0.53817661]
[1761564432903,1.29025549,1156.9,1154.9,0.53817661]
[1761564433103,1.29025549,1156.9,1155.0,0.53817661]
[1761564433403,1.29025549,1156.9,1154.5,0.64128399]
[1761564433603,1.29025549,1156.9,1154.6,0.53827218]
[1761564433799,1.29025549,1156.9,1154.7,0.53827218]
[1761564433999,1.29025549,1157.0,1154.8,0.53827218]
[1761564434198,1.29025549,1157.0,1154.9,0.53827218]
[1761564434403,1.29025549,1157.0,1155.0,0.53827218]
[1761564434604,1.29025549,1157.0,1155.1,0.53827218]
[1761564434799,1.29025549,1157.0,1154.5,0.64128399]
[1761564435101,1.29025549,1157.1,1154.6,0.53830031]
[1761564435303,1.29025549,1157.1,1154.7,0.53830031]
[1761564435505,1.29025549,1157.1,1154.8,0.53830031]
[1761564435801,1.29025549,1157.1,1154.9,0.53830031]
[1761564436003,1.29025549,1157.1,1155.0,0.53830031]
[1761564436303,1.29025549,1157.1,1155.1,0.53830031]
[1761564436504,1.29025549,1157.1,1155.2,0.53830031]
[1761564436703,1.29025549,1157.1,1154.5,0.64128399]
[1761564436901,1.29025549,1157.1,1154.6,0.53839924]
[1761564437101,1.29025549,1157.1,1154.7,0.53839924]
[1761564437404,1.29025549,1157.1,1154.8,0.53839924]
[1761564437604,1.29025549,1157.1,1154.9,0.53839924]
[1761564437805,1.29025549,1157.1,1155.0,0.53839924]
[1761564438005,1.29025549,1157.1,1155.1,0.53839924]
[1761564438204,1.29025549,1157.1,1155.2,0.53839924]
[1761564438405,1.29025549,1157.1,1155.3,0.53839924]
[1761564438606,1.29025549,1157.1,1154.6,0.64128399]
[1761564438805,1.29025549,1157.0,1154.7,1.1798834]
[1761564439006,1.29025549,1157.0,1154.8,0.53859941]
[1761564439307,1.29025549,1156.9,1154.9,0.53859941]
[1761564439509,1.29025549,1156.8,1155.0,0.53859941]
[1761564439705,1.29025549,1156.8,1155.1,0.53859941]
[1761564439909,1.29025549,1156.8,1155.2,0.53859941]
[1761564440109,1.29025549,1156.8,1155.3,0.53859941]
[1761564440308,1.29025549,1156.8,1154.9,0.64128399]
[1761564440511,1.29025549,1156.8,1155.0,0.53865105]
[1761564440711,1.29025549,1156.8,1155.1,0.53865105]
[1761564440909,1.29025549,1156.9,1155.2,0.53865105]
[1761564441113,1.29025549,1156.9,1155.3,0.53865105]
[1761564441312,1.29025549,1156.9,1155.4,0.53865105]
[1761564441510,1.29025549,1156.9,1155.0,0.64128399]
[1761564441710,1.29025549,1156.9,1155.1,0.5384265]
[1761564441913,1.29025549,1156.9,1155.2,0.5384265]
[1761564442114,1.29025549,1156.9,1155.3,0.5384265]
[1761564442316,1.29025549,1156.7,1155.0,0.64128399]
[1761564442513,1.29025549,1156.6,1155.1,0.5386116]
[1761564442715,1.29025549,1156.6,1155.2,0.5386116]
[1761564442918,1.29025549,1156.6,1154.9,0.64128399]
[1761564443215,1.29025549,1156.6,1155.0,0.53861108]
[1761564443414,1.29025549,1156.8,1155.1,0.53861108]
[1761564443617,1.29025549,1157.0,1155.2,0.53861108]
[1761564443917,1.29025549,1157.0,1154.6,0.64128399]
[1761564444115,1.29025549,1157.0,1154.7,0.53878909]
[1761564444318,1.29025549,1157.0,1154.8,0.53878909]
[1761564444514,1.29025549,1157.0,1154.9,0.53878909]
[1761564444815,1.29025549,1157.0,1155.0,0.53878909]
[1761564445014,1.29025549,1157.0,1155.1,0.53878909]
[1761564445316,1.29025549,1157.1,1155.2,0.53878909]
[1761564445516,1.29025549,1157.1,1155.3,0.53878909]
[1761564445717,1.29025549,1157.0,1154.6,0.64128399]
[1761564445917,1.29025549,1157.0,1154.7,0.53889646]
[1761564446117,1.29025549,1157.0,1154.8,0.53889646]
[1761564446318,1.29025549,1157.0,1154.9,0.53889646]
[1761564446520,1.29025549,1156.9,1155.0,0.53889646]
[1761564446720,1.29025549,1156.9,1155.1,0.53889646]
[1761564447020,1.29025549,1156.9,1155.2,0.53889646]
[1761564447221,1.29025549,1156.9,1154.7,0.64128399]
[1761564447422,1.29025549,1156.9,1154.8,0.53896842]
[1761564447718,1.29025549,1156.9,1154.9,0.53896842]
[1761564448017,1.29025549,1156.9,1155.0,0.53896842]
[1761564448218,1.29025549,1156.9,1155.1,0.53896842]
[1761564448417,1.29025549,1156.9,1155.2,0.53896842]
[1761564448618,1.29025549,1156.9,1154.7,0.64128399]
[1761564448817,1.29025549,1156.9,1154.8,0.53901003]
[1761564449022,1.29025549,1156.9,1154.9,0.53901003]
[1761564449222,1.29025549,1156.9,1155.0,0.53901003]
[1761564449423,1.29025549,1156.9,1155.1,0.53901003]
[1761564449624,1.29025549,1156.9,1155.2,0.53901003]
[1761564449919,1.29025549,1156.9,1155.3,0.53901003]
[1761564450124,1.29025549,1156.9,1154.7,0.64128399]
[1761564450324,1.29025549,1156.9,1154.8,0.53909645]
[1761564450520,1.29025549,1156.9,1154.9,0.53909645]
[1761564450720,1.29025549,1157.0,1155.0,0.53909645]
[1761564450924,1.29025549,1156.8,1155.1,0.53909645]
[1761564451123,1.29025549,1156.8,1155.2,0.53909645]
[1761564451321,1.29025549,1156.8,1155.3,0.53909645]
[1761564451523,1.29025549,1156.8,1155.4,0.53909645]
[1761564451725,1.29025549,1156.8,1155.0,0.64128399]
[1761564451921,1.29025549,1156.8,1155.1,0.53880036]
[1761564452223,1.29025549,1156.8,1155.2,0.53880036]
[1761564452422,1.29025549,1156.8,1155.3,0.53880036]
[1761564452626,1.29025549,1156.8,1155.4,0.53880036]
[1761564452823,1.29025549,1156.9,1155.0,0.64128399]
[1761564453027,1.29025549,1156.9,1155.1,1.17998173]
[1761564453224,1.29025549,1156.9,1155.2,0.53869774]
[1761564453423,1.29025549,1156.9,1155.3,0.53869774]
[1761564453627,1.29025549,1156.9,1155.4,0.53869774]
[1761564453823,1.29025549,1156.9,1155.5,0.53869774]
[1761564454024,1.29025549,1156.9,1155.0,0.64128399]
[1761564454229,1.29025549,1156.9,1155.1,0.53866354]
[1761564454524,1.29025549,1156.9,1155.2,0.53866354]
[1761564454728,1.29025549,1156.9,1155.3,0.53866354]
[1761564454929,1.29025549,1156.9,1155.4,0.53866354]
[1761564455127,1.29025549,1156.9,1155.5,0.53866354]
[1761564455424,1.29025549,1156.9,1155.1,0.64128399]
[1761564455625,1.29025549,1156.9,1155.2,0.53848364]
[1761564455824,1.29025549,1156.9,1155.1,0.64128399]
[1761564455825,1.29025549,1156.9,1155.3,0.53848364]
[1761564456026,1.29025549,1156.8,1155.4,0.53848364]
[1761564456231,1.29025549,1156.8,1155.5,0.53848364]
[1761564456430,1.29025549,1156.8,1155.2,0.64128399]
[1761564456729,1.29025549,1156.8,1155.3,0.53831993]
[1761564456930,1.29025549,1156.8,1155.4,0.53831993]
[1761564457130,1.29025549,1156.9,1155.5,0.53831993]
[1761564457324,1.29025549,1156.9,1155.1,0.64128399]
[1761564457527,1.29025549,1156.9,1155.2,0.53799636]
[1761564457726,1.29025549,1156.9,1155.3,0.53799636]
[1761564457924,1.29025549,1157.0,1155.4,0.53799636]
[1761564458129,1.29025549,1157.0,1155.5,0.53799636]
[1761564458330,1.29025549,1157.1,1155.6,0.53799636]
[1761564458530,1.29025549,1157.1,1155.2,0.64128399]
[1761564458730,1.29025549,1157.1,1155.3,0.53771707]
[1761564458926,1.29025549,1157.1,1155.4,0.53771707]
[1761564459129,1.29025549,1157.0,1155.5,0.53771707]
[1761564459331,1.29025549,1157.1,1155.6,0.53771707]
[1761564459533,1.29025549,1157.1,1155.7,0.53771707]
[1761564459827,1.29025549,1157.1,1155.4,0.64128399]
[1761564460025,1.29025549,1157.1,1155.5,0.53738353]
[1761564460228,1.29025549,1157.1,1155.6,0.53738353]
[1761564460427,1.29025549,1157.1,1155.7,0.53738353]
[1761564460629,1.29025549,1157.2,1155.3,0.64128399]
[1761564460828,1.29025549,1157.5,1155.5,0.64128399]
[1761564461028,1.29025549,1157.4,1155.6,0.53719195]
[1761564461230,1.29025549,1157.5,1155.7,0.53719195]
[1761564461430,1.29025549,1157.5,1155.8,0.53719195]
[1761564461631,1.29025549,1157.5,1155.5,0.64128399]
[1761564461632,1.29025549,1157.5,1155.9,0.53719195]
[1761564461933,1.29025549,1157.5,1155.5,0.64128399]
[1761564462128,1.29025549,1157.5,1155.6,0.53670342]
[1761564462333,1.29025549,1157.5,1155.7,0.53670342]
[1761564462532,1.29025549,1157.5,1155.8,0.53670342]
[1761564462730,1.29025549,1157.5,1155.9,0.53670342]
[1761564462933,1.29025549,1157.5,1155.4,0.64128399]
[1761564463134,1.29025549,1157.5,1155.5,0.536568]
[1761564463333,1.29025549,1157.5,1155.6,0.536568]
[1761564463629,1.29025549,1157.6,1155.7,0.536568]
[1761564463830,1.29025549,1157.7,1155.8,0.536568]
[1761564464129,1.29025549,1157.7,1155.9,0.536568]
[1761564464329,1.29025549,1157.7,1155.4,0.64128399]
[1761564464629,1.29025549,1157.7,1155.5,0.53637261]
[1761564464832,1.29025549,1157.7,1155.6,0.53637261]
[1761564465033,1.29025549,1157.3,1155.7,0.53637261]
[1761564465234,1.29025549,1157.3,1155.4,0.64128399]
[1761564465433,1.29025549,1157.3,1155.5,0.53639534]
[1761564465730,1.29025549,1157.2,1155.6,0.53639534]
[1761564465930,1.29025549,1157.2,1155.7,0.53639534]
[1761564466130,1.29025549,1157.2,1155.3,0.64128399]
[1761564466334,1.29025549,1157.2,1155.4,0.53639476]
[1761564466531,1.29025549,1157.2,1155.5,0.53639476]
[1761564466730,1.29025549,1157.2,1155.6,0.53639476]
[1761564466933,1.29025549,1157.2,1155.3,0.64128399]
[1761564467234,1.29025549,1157.3,1155.4,0.53640878]
[1761564467533,1.29025549,1157.2,1155.5,0.53640878]
[1761564467736,1.29025549,1157.2,1155.6,0.53640878]
[1761564467934,1.29025549,1157.2,1155.3,0.64128399]
[1761564468136,1.29025549,1157.2,1155.4,0.53629757]
[1761564468335,1.29025549,1157.2,1155.5,0.53629757]
[1761564468535,1.29025549,1157.2,1155.6,0.53629757]
[1761564468736,1.29025549,1157.2,1155.3,0.64128399]
[1761564468937,1.29025549,1157.2,1155.4,0.5362274]
[1761564469137,1.29025549,1157.2,1155.5,0.5362274]
[1761564469437,1.29025549,1157.3,1155.6,0.5362274]
[1761564469740,1.29025549,1157.3,1155.3,0.64128399]
[1761564469933,1.29025549,1157.3,1155.4,0.53612805]
[1761564470135,1.29025549,1157.3,1155.5,0.53612805]
[1761564470335,1.29025549,1157.3,1155.6,0.53612805]
[1761564470537,1.29025549,1157.3,1155.3,0.64128399]
[1761564470734,1.29025549,1157.3,1155.4,0.53609095]
[1761564470934,1.29025549,1157.5,1155.5,0.53609095]
[1761564471133,1.29025549,1157.5,1155.6,0.53609095]
[1761564471434,1.29025549,1157.5,1155.7,0.53609095]
[1761564471633,1.29025549,1157.5,1155.3,0.64128399]
[1761564471834,1.29025549,1157.6,1155.4,0.53594155]
[1761564472034,1.29025549,1157.6,1155.5,0.53594155]
[1761564472334,1.29025549,1157.6,1155.3,0.64128399]
[1761564472335,1.29025549,1157.6,1155.6,0.53594155]
[1761564472534,1.29025549,1157.6,1155.7,0.53594155]
[1761564472732,1.29025549,1157.6,1155.3,0.64128399]
[1761564472933,1.29025549,1157.6,1155.4,0.53601792]
[1761564473135,1.29025549,1157.6,1155.5,0.53601792]
[1761564473334,1.29025549,1157.6,1155.6,0.53601792]
[1761564473538,1.29025549,1157.6,1155.7,0.53601792]
[1761564473738,1.29025549,1157.6,1155.3,0.64128399]
[1761564473938,1.29025549,1157.7,1155.4,0.53595447]
[1761564474235,1.29025549,1157.7,1155.5,0.53595447]
[1761564474437,1.29025549,1157.7,1155.6,0.53595447]
[1761564474737,1.29025549,1157.7,1155.7,0.53595447]
[1761564474938,1.29025549,1157.7,1155.3,0.64128399]
[1761564474939,1.29025549,1158.0,1155.8,0.53595447]
[1761564475238,1.29025549,1158.0,1155.2,0.64128399]
[1761564475436,1.29025549,1158.0,1155.3,0.53592496]
[1761564475738,1.29025549,1158.0,1155.4,0.53592496]
[1761564475938,1.29025549,1158.0,1155.5,0.53592496]
[1761564476135,1.29025549,1158.0,1155.6,0.53592496]
[1761564476437,1.29025549,1158.0,1155.7,0.53592496]
[1761564476638,1.29025549,1158.0,1155.8,0.53592496]
[1761564476934,1.29025549,1158.0,1155.2,0.64128399]
[1761564477139,1.29025549,1158.0,1155.3,0.53583837]
[1761564477339,1.29025549,1158.0,1155.4,0.53583837]
[1761564477539,1.29025549,1158.0,1155.5,0.53583837]
[1761564477739,1.29025549,1158.0,1155.6,0.53583837]
[1761564477936,1.29025549,1158.0,1155.7,0.53583837]
[1761564478239,1.29025549,1158.0,1155.8,0.5358566]
[1761564478439,1.29025549,1158.0,1155.1,0.64128399]
[1761564478740,1.29025549,1158.0,1155.2,0.53574923]
[1761564478936,1.29025549,1158.0,1155.3,0.53574923]
[1761564479143,1.29025549,1158.0,1155.4,0.53574923]
[1761564479436,1.29025549,1158.0,1155.5,0.53574923]
[1761564479738,1.29025549,1158.0,1155.6,0.53574923]
[1761564479938,1.29025549,1158.0,1155.7,0.53574923]
[1761564480137,1.29025549,1158.0,1155.8,0.53574923]
[1761564480337,1.29025549,1158.0,1155.1,0.64128399]
[1761564480538,1.29025549,1158.0,1155.2,0.53574143]
[1761564480741,1.29025549,1158.0,1155.3,0.53574143]
[1761564480938,1.29025549,1158.0,1155.4,0.53574143]
[1761564481238,1.29025549,1158.0,1155.5,0.53574143]
[1761564481437,1.29025549,1158.0,1155.6,0.53574143]
[1761564481643,1.29025549,1158.0,1155.7,0.53574143]
[1761564481844,1.29025549,1157.8,1155.8,0.53569618]
[1761564482038,1.29025549,1158.0,1155.9,0.53542949]
[1761564482244,1.29025549,1158.0,1156.0,0.53542949]
[1761564482543,1.29025549,1158.0,1155.4,0.64128399]
[1761564482742,1.29025549,1158.0,1155.5,0.53536623]
[1761564482944,1.29025549,1158.0,1155.6,0.53536623]
[1761564483242,1.29025549,1158.0,1155.7,0.53536623]
[1761564483442,1.29025549,1158.0,1155.8,0.53536623]
[1761564483641,1.29025549,1157.9,1155.9,0.53536623]
[1761564483845,1.29025549,1157.9,1155.3,0.64128399]
[1761564484043,1.29025549,1158.0,1155.4,0.53546151]
[1761564484241,1.29025549,1158.0,1155.5,0.53546151]
[1761564484446,1.29025549,1158.0,1155.6,0.53546151]
[1761564484645,1.29025549,1158.0,1155.7,0.53546151]
[1761564484841,1.29025549,1158.0,1155.8,0.53546151]
[1761564485042,1.29025549,1158.0,1155.9,0.53546151]
[1761564485241,1.29025549,1158.0,1155.3,0.64128399]
[1761564485447,1.29025549,1157.9,1155.4,0.53546106]
[1761564485645,1.29025549,1157.9,1155.5,0.53546106]
[1761564485848,1.29025549,1157.5,1155.6,0.53546106]
[1761564486045,1.29025549,1157.5,1155.7,0.53546106]
[1761564486245,1.29025549,1157.5,1155.2,0.64128399]
[1761564486446,1.29025549,1157.5,1155.3,0.53567192]
[1761564486649,1.29025549,1157.5,1155.4,0.53567192]
[1761564486846,1.29025549,1157.5,1155.5,0.53567192]
[1761564487046,1.29025549,1157.5,1155.6,0.53567192]
[1761564487347,1.29025549,1157.5,1155.2,0.64128399]
[1761564487545,1.29025549,1157.5,1155.3,0.53570902]
[1761564487750,1.29025549,1157.5,1155.4,0.53570902]
[1761564488044,1.29025549,1157.5,1155.5,0.53570902]
[1761564488246,1.29025549,1157.5,1155.6,0.53570902]
[1761564488444,1.29025549,1157.5,1155.7,0.53570902]
[1761564488748,1.29025549,1157.5,1155.2,0.64128399]
[1761564488949,1.29025549,1157.5,1155.3,0.53573062]
[1761564489151,1.29025549,1157.5,1155.4,0.53573062]
[1761564489346,1.29025549,1157.5,1155.5,0.53573062]
[1761564489547,1.29025549,1157.5,1155.6,0.53573062]
[1761564489847,1.29025549,1157.7,1155.7,0.53573062]